[Event "IIFL Wealth  4th Mumbai Junior U-13"]
[Site "Mumbai"]
[Date "2019.01.07"]
[Round "9"]
[White "Bajaj Prakhar"]
[Black "Bagwe Gaurang"]
[Result "1-0"]
[ECO "D02"]
[WhiteElo "1551"]
[BlackElo "1768"]
[Annotator "NA RC"]
[PlyCount "117"]
[EventDate "2018.12.30"]
[EventType "swiss"]
[EventCountry "IND"]
[SourceTitle "playchess.com"]
[Source "ChessBase"]
[SourceQuality "1"]
[TimeControl "40/5400+30:1800+30"]

1. d4 {[%emt 0:00:00]} d5 {[%emt 0:04:39]} 2. Nf3 {[%emt 0:00:52]} Nf6 {[%emt 0:00:37]} 3. Bf4 {[%emt 0:00:25]} e6 {[%emt 0:00:49]} 4. e3 {[%emt 0:00:22]} Be7 {[%emt 0:04:59]} 5. Bd3 {[%emt 0:01:17]} O-O {[%emt 0:02:52]} 6. Nbd2 {[%emt 0:01:24]} Nbd7 {[%emt 0:00:26]} 7. Ne5 {[%emt 0:04:00]} Nxe5 {[%emt 0:06:55]} 8. dxe5 {[%emt 0:01:20]} Nd7 {[%emt 0:01:06]} 9. Nf3 {[%emt 0:16:33]} f6 {[%emt 0:14:08]} 10. h4 {[%emt 0:11:38]} h6 {[%emt 0:04:32]} 11. Bg6 {[%emt 0:19:57]} fxe5 {[%emt 0:06:47]} 12. Nxe5 {[%emt 0:16:27]} Nxe5 {[%emt 0:00:31]} 13. Bxe5 {[%emt 0:00:15]} Bxh4 {[%emt 0:00:48]} 14. g3 {[%emt 0:08:52]} Bf6 {[%emt 0:00:34]} 15. Bf4 {[%emt 0:06:44]} Bg5 {[%emt 0:18:27]} 16. Qd3 {[%emt 0:02:15]} Qe7 {[%emt 0:06:06]} 17. O-O-O {[%emt 0:00:52]} c6 {[%emt 0:01:02]} 18. Bxg5 {[%emt 0:00:36]} Qxg5 {[%emt 0:00:27]} 19. f4 {[%emt 0:00:01]} Qe7 {[%emt 0:04:10]} 20. g4 {[%emt 0:00:46]} e5 {[%emt 0:02:47]} 21. g5 {[%emt 0:00:41]} exf4 {[%emt 0:00:40]} 22. exf4 {[%emt 0:00:19]} Rxf4 {[%emt 0:00:24]} 23. gxh6 {[%emt 0:00:34]} Qg5 {[%emt 0:05:58]} 24. Qe3 {[%emt 0:00:32]} Bg4 {[%emt 0:01:01]} 25. h7+ {[%emt 0:02:21]} Kh8 {[%emt 0:00:17]} 26. Rde1 {[%emt 0:00:01]} Raf8 {[%emt 0:01:25]} 27. Bd3 {[%emt 0:00:43]} d4 {[%emt 0:01:13]} 28. Qd2 {[%emt 0:00:32]} Qf6 {[%emt 0:00:39]} 29. Qb4 {[%emt 0:00:27]} b6 {[%emt 0:01:34]} 30. Qb3 {[%emt 0:01:13]} Rf3 {[%emt 0:02:03]} 31. Qg8+ {[%emt 0:01:28]} Rxg8 {[%emt 0:00:09]} 32. hxg8=Q+ {[%emt 0:00:03]} Kxg8 {[%emt 0:00:22]} 33. Bc4+ {[%emt 0:00:01]} Be6 {[%emt 0:00:34]} 34. Rxe6 {[%emt 0:00:34]} Qg5+ {[%emt 0:01:19]} 35. Kb1 {[%emt 0:00:20]} Qd5 {[%emt 0:06:16]} 36. Bxd5 {[%emt 0:00:11]} cxd5 {[%emt 0:00:09]} 37. Rd6 {[%emt 0:00:27]} Rf5 {[%emt 0:00:12]} 38. b3 {[%emt 0:00:11]} g5 {[%emt 0:00:05]} 39. Rd7 {[%emt 0:00:26]} g4 {[%emt 0:00:20]} 40. Rg1 {[%emt 0:00:00]} Rg5 {[%emt 0:00:00]} 41. Kc1 {[%emt 0:00:48]} g3 {[%emt 0:00:14]} 42. Kd2 {[%emt 0:00:07]} g2 {[%emt 0:00:11]} 43. Re7 {[%emt 0:00:21]} b5 {[%emt 0:00:52]} 44. Re2 {[%emt 0:01:00]} a5 {[%emt 0:00:06]} 45. Rexg2 {[%emt 0:00:04]} Rxg2+ {[%emt 0:00:01]} 46. Rxg2+ {[%emt 0:00:01]} Kf7 {[%emt 0:00:01]} 47. Kd3 {[%emt 0:00:24]} a4 {[%emt 0:00:18]} 48. Kxd4 {[%emt 0:00:06]} axb3 {[%emt 0:00:02]} 49. axb3 {[%emt 0:00:05]} Ke6 {[%emt 0:00:13]} 50. Rg5 {[%emt 0:00:06]} b4 {[%emt 0:00:04]} 51. Rxd5 {[%emt 0:00:04]} Ke7 {[%emt 0:00:06]} 52. Kc4 {[%emt 0:00:06]} Ke6 {[%emt 0:00:07]} 53. Rd3 {[%emt 0:00:04]} Ke5 {[%emt 0:00:06]} 54. Kxb4 {[%emt 0:00:03]} Ke4 {[%emt 0:00:01]} 55. Kc4 {[%emt 0:00:08]} Ke5 {[%emt 0:00:01]} 56. b4 {[%emt 0:00:05]} Ke4 {[%emt 0:00:09]} 57. b5 {[%emt 0:00:13]} Kf4 {[%emt 0:00:09]} 58. b6 {[%emt 0:00:03]} Ke4 {[%emt 0:00:05]} 59. b7 {[%emt 0:00:04] Kd5+} 1-0

[Event "IIFL Wealth  4th Mumbai Junior U-13"]
[Site "Mumbai"]
[Date "2019.01.07"]
[Round "9"]
[White "Mahi Amit Doshi"]
[Black "Tambe Shardul"]
[Result "1/2-1/2"]
[ECO "D00"]
[WhiteElo "1551"]
[BlackElo "1250"]
[Annotator "NA RC"]
[PlyCount "93"]
[EventDate "2018.12.30"]
[EventType "swiss"]
[EventCountry "IND"]
[SourceTitle "playchess.com"]
[Source "ChessBase"]
[SourceQuality "1"]
[TimeControl "40/5400+30:1800+30"]

1. d4 {[%emt 0:04:40]} d5 {[%emt 0:00:00]} 2. Bf4 {[%emt 0:00:16]} Nf6 {[%emt 0:00:31]} 3. e3 {[%emt 0:00:22]} e6 {[%emt 0:00:55]} 4. Nf3 {[%emt 0:01:09]} c5 {[%emt 0:00:56]} 5. c3 {[%emt 0:00:03]} Nc6 {[%emt 0:00:37]} 6. Nbd2 {[%emt 0:00:27]} Be7 {[%emt 0:05:53]} 7. h3 {[%emt 0:00:35]} h6 {[%emt 0:00:40]} 8. Bd3 {[%emt 0:00:16]} O-O {[%emt 0:01:00]} 9. O-O {[%emt 0:00:06]} Bd6 {[%emt 0:02:11]} 10. Bxd6 {[%emt 0:00:34]} Qxd6 {[%emt 0:00:02]} 11. Re1 {[%emt 0:03:56]} e5 {[%emt 0:03:41]} 12. dxe5 {[%emt 0:00:37]} Nxe5 {[%emt 0:00:22]} 13. Nxe5 {[%emt 0:00:03]} Qxe5 {[%emt 0:00:01]} 14. Nf3 {[%emt 0:00:02]} Qc7 {[%emt 0:01:36]} 15. Qc2 {[%emt 0:07:30]} Re8 {[%emt 0:06:37]} 16. Rad1 {[%emt 0:01:14]} Bd7 {[%emt 0:03:26]} 17. c4 {[%emt 0:09:46]} dxc4 {[%emt 0:06:35]} 18. Bxc4 {[%emt 0:00:23]} b5 {[%emt 0:03:14]} 19. Bd5 {[%emt 0:01:30]} Rac8 {[%emt 0:00:42]} 20. Nh4 {[%emt 0:12:42]} Be6 {[%emt 0:21:05]} 21. Bxe6 Rxe6 {[%emt 0:00:16]} 22. Qd3 {[%emt 0:07:18]} c4 {[%emt 0:02:55]} 23. Qc2 {[%emt 0:06:58]} Qa5 {[%emt 0:06:02]} 24. a3 {[%emt 0:06:02]} c3 {[%emt 0:06:53]} 25. Nf5 {[%emt 0:04:54]} g6 {[%emt 0:11:21]} 26. Nd4 {[%emt 0:01:45]} Ree8 {[%emt 0:00:39]} 27. Ra1 {[%emt 0:08:48]} cxb2 {[%emt 0:03:06]} 28. Qxb2 {[%emt 0:00:03]} Nd7 {[%emt 0:02:55]} 29. Qxb5 {[%emt 0:00:57]} Qc7 {[%emt 0:02:17]} 30. a4 {[%emt 0:01:43]} Re5 {[%emt 0:02:12]} 31. Qd3 {[%emt 0:02:05]} Nc5 {[%emt 0:02:14]} 32. Qc3 {[%emt 0:01:11]} Ne6 {[%emt 0:01:53]} 33. Qxc7 {[%emt 0:02:04]} Rxc7 {[%emt 0:00:02]} 34. Nb5 {[%emt 0:00:25]} Rd7 {[%emt 0:00:34]} 35. Rec1 {[%emt 0:01:05]} a6 {[%emt 0:00:37]} 36. Na3 {[%emt 0:00:36]} Rc5 {[%emt 0:01:17]} 37. Rxc5 {[%emt 0:02:10]} Nxc5 {[%emt 0:00:01]} 38. Nc4 {[%emt 0:00:10]} Rb7 {[%emt 0:01:05]} 39. a5 {[%emt 0:00:54]} Nb3 {[%emt 0:01:21]} 40. Ra2 {[%emt 0:00:00]} Nc5 {[%emt 0:00:00]} 41. Kf1 {[%emt 0:02:54]} Ne4 {[%emt 0:03:01]} 42. Rb2 {[%emt 0:05:57]} Rc7 {[%emt 0:03:30]} 43. Rb4 {[%emt 0:04:02]} Rxc4 {[%emt 0:00:07]} 44. Rb6 {[%emt 0:03:30]} Kg7 {[%emt 0:02:52]} 45. Rxa6 {[%emt 0:00:07]} Ra4 {[%emt 0:00:40]} 46. Ra8 {[%emt 0:01:14]} Ra2 {[%emt 0:02:18]} 47. a6 {[%emt 0:01:41]} 1/2-1/2

[Event "IIFL Wealth  4th Mumbai Junior U-13"]
[Site "Mumbai"]
[Date "2019.01.07"]
[Round "9"]
[White "Rajbeer Ahmed"]
[Black "Sathi Akshaj Mayank"]
[Result "1-0"]
[ECO "A49"]
[WhiteElo "1550"]
[BlackElo "1194"]
[Annotator "NA RC"]
[PlyCount "99"]
[EventDate "2018.12.30"]
[EventType "swiss"]
[EventCountry "IND"]
[SourceTitle "playchess.com"]
[Source "ChessBase"]
[SourceQuality "1"]
[TimeControl "40/5400+30:1800+30"]

1. d4 {[%emt 0:00:00]} Nf6 {[%emt 0:00:00]} 2. Nf3 {[%emt 0:00:00]} g6 {[%emt 0:00:02]} 3. g3 {[%emt 0:00:00]} Bg7 {[%emt 0:01:28]} 4. Bg2 {[%emt 0:00:00]} O-O {[%emt 0:00:30]} 5. O-O {[%emt 0:00:50]} d6 {[%emt 0:00:30]} 6. Nbd2 {[%emt 0:02:41]} Nbd7 {[%emt 0:06:35]} 7. c3 {[%emt 0:03:17]} Nb6 {[%emt 0:04:20]} 8. e4 {[%emt 0:00:43]} Re8 {[%emt 0:01:18]} 9. e5 {[%emt 0:01:42]} dxe5 {[%emt 0:01:01]} 10. Nxe5 {[%emt 0:00:23]} c6 {[%emt 0:09:47]} 11. Ndf3 {[%emt 0:00:53]} Nfd7 {[%emt 0:13:28]} 12. Nxf7 {[%emt 0:01:52]} Qc7 {[%emt 0:11:29]} 13. Bf4 {[%emt 0:01:26]} e5 {[%emt 0:00:31]} 14. N7xe5 {[%emt 0:07:27]} Nxe5 {[%emt 0:03:42]} 15. Nxe5 {[%emt 0:02:29]} Qe7 {[%emt 0:02:47]} 16. Re1 {[%emt 0:02:24]} Qf8 {[%emt 0:00:33]} 17. Nd3 {[%emt 0:05:37]} Rd8 {[%emt 0:09:04]} 18. Bc7 {[%emt 0:10:23]} Re8 {[%emt 0:02:16]} 19. Rxe8 {[%emt 0:00:56]} Qxe8 {[%emt 0:00:05]} 20. Be5 {[%emt 0:02:59]} Bf8 {[%emt 0:04:48]} 21. Qf3 {[%emt 0:04:37]} Bg7 {[%emt 0:02:25]} 22. Bxg7 {[%emt 0:00:42]} Kxg7 {[%emt 0:00:18]} 23. Re1 {[%emt 0:00:19]} Qd7 {[%emt 0:01:54]} 24. Nf4 {[%emt 0:04:18]} Qf7 {[%emt 0:09:46]} 25. d5 {[%emt 0:04:23]} cxd5 {[%emt 0:06:15]} 26. Nxd5 {[%emt 0:00:39]} Be6 {[%emt 0:02:37]} 27. Qxf7+ {[%emt 0:01:04]} Bxf7 {[%emt 0:00:13]} 28. Nxb6 {[%emt 0:00:15]} axb6 {[%emt 0:00:09]} 29. a3 {[%emt 0:00:08]} Rd8 {[%emt 0:02:10]} 30. Bxb7 {[%emt 0:00:13]} Rd2 {[%emt 0:00:06]} 31. b4 {[%emt 0:00:36]} Ra2 {[%emt 0:00:23]} 32. Re7 {[%emt 0:00:47]} Kf8 {[%emt 0:00:18]} 33. Rxf7+ {[%emt 0:00:14]} Kxf7 {[%emt 0:00:13]} 34. Bd5+ {[%emt 0:00:03]} Kf6 {[%emt 0:00:10]} 35. Bxa2 {[%emt 0:00:04]} Ke5 {[%emt 0:01:05]} 36. a4 {[%emt 0:00:14]} Kd6 {[%emt 0:00:24]} 37. c4 {[%emt 0:00:08]} Kc6 {[%emt 0:00:42]} 38. f4 {[%emt 0:00:07]} Kd6 {[%emt 0:00:53]} 39. g4 {[%emt 0:00:04]} Ke7 {[%emt 0:00:06]} 40. h4 {[%emt 0:00:00]} Kf6 {[%emt 0:00:00]} 41. a5 {[%emt 0:00:12]} Ke7 {[%emt 0:00:12]} 42. a6 {[%emt 0:00:03]} Kd7 {[%emt 0:00:05]} 43. a7 {[%emt 0:00:04]} Kc7 {[%emt 0:00:04]} 44. a8=Q Kd6 {[%emt 0:00:19]} 45. Qd5+ {[%emt 0:00:12]} Ke7 {[%emt 0:00:05]} 46. c5 {[%emt 0:00:04]} bxc5 {[%emt 0:00:14]} 47. bxc5 {[%emt 0:00:05]} Ke8 {[%emt 0:00:00]} 48. c6 {[%emt 0:00:11]} Ke7 {[%emt 0:00:09]} 49. Qd7+ {[%emt 0:00:06]} Kf6 {[%emt 0:00:36]} 50. Qf7# {[%emt 0:00:05]} 1-0

[Event "IIFL Wealth  4th Mumbai Junior U-13"]
[Site "Mumbai"]
[Date "2019.01.07"]
[Round "9"]
[White "Kshatriya Nitin Vekhande"]
[Black "Thatavarthy Siva Suhas"]
[Result "1/2-1/2"]
[ECO "B78"]
[WhiteElo "1544"]
[BlackElo "1173"]
[Annotator "NA RC"]
[PlyCount "95"]
[EventDate "2018.12.30"]
[EventType "swiss"]
[EventCountry "IND"]
[SourceTitle "playchess.com"]
[Source "ChessBase"]
[SourceQuality "1"]
[TimeControl "40/5400+30:1800+30"]

1. e4 {[%emt 0:10:13]} c5 {[%emt 0:02:08]} 2. Nf3 {[%emt 0:00:20]} d6 {[%emt 0:00:49]} 3. d4 {[%emt 0:00:04]} cxd4 {[%emt 0:00:28]} 4. Nxd4 {[%emt 0:00:39]} Nf6 {[%emt 0:00:14]} 5. Nc3 {[%emt 0:00:03]} g6 {[%emt 0:00:18]} 6. Be3 {[%emt 0:00:43]} Bg7 {[%emt 0:00:09]} 7. f3 {[%emt 0:00:03]} O-O {[%emt 0:00:08]} 8. Qd2 {[%emt 0:00:02]} Nc6 {[%emt 0:00:06]} 9. Bc4 {[%emt 0:00:05]} Bd7 {[%emt 0:00:04]} 10. O-O-O {[%emt 0:00:06]} Qa5 {[%emt 0:03:53]} 11. Nb3 {[%emt 0:00:12]} Qb4 {[%emt 0:05:17]} 12. Bd3 {[%emt 0:16:54]} Na5 {[%emt 0:03:02]} 13. Kb1 {[%emt 0:01:07]} Nxb3 {[%emt 0:06:36]} 14. cxb3 Rfc8 {[%emt 0:05:01]} 15. Bc4 {[%emt 0:05:14]} a6 {[%emt 0:03:15]} 16. g4 {[%emt 0:03:26]} b5 {[%emt 0:06:59]} 17. Bd5 {[%emt 0:03:08]} Bc6 {[%emt 0:00:33]} 18. h4 {[%emt 0:00:45]} Bxd5 {[%emt 0:00:51]} 19. exd5 {[%emt 0:10:09]} Nd7 {[%emt 0:02:57]} 20. h5 {[%emt 0:21:50]} Bxc3 {[%emt 0:14:29]} 21. bxc3 {[%emt 0:00:46]} Qxc3 {[%emt 0:00:07]} 22. hxg6 {[%emt 0:00:13]} fxg6 {[%emt 0:00:14]} 23. Qh2 {[%emt 0:01:19]} Qg7 {[%emt 0:00:38]} 24. Bd4 {[%emt 0:01:14]} Qf7 {[%emt 0:00:57]} 25. Bb2 {[%emt 0:00:28]} Rc7 {[%emt 0:22:15]} 26. f4 Rac8 {[%emt 0:03:41]} 27. Rd2 {[%emt 0:16:28]} Nf6 {[%emt 0:02:58]} 28. Qg2 {[%emt 0:01:09]} Rc5 {[%emt 0:02:05]} 29. Rhd1 {[%emt 0:00:17]} a5 {[%emt 0:00:46]} 30. a3 {[%emt 0:00:27]} a4 {[%emt 0:00:17]} 31. b4 {[%emt 0:00:16]} Rc4 {[%emt 0:00:24]} 32. Qf3 {[%emt 0:02:30]} Ne4 {[%emt 0:02:24]} 33. Rd3 {[%emt 0:00:41]} Nf6 {[%emt 0:01:36]} 34. R1d2 {[%emt 0:01:14]} Ne4 {[%emt 0:04:03]} 35. Rd1 {[%emt 0:00:03]} Nf6 {[%emt 0:00:50]} 36. R1d2 {[%emt 0:00:23]} Ne4 {[%emt 0:00:24]} 37. Rd1 {[%emt 0:00:01]} Nf6 {[%emt 0:01:05]} 38. Rh1 Rf8 {[%emt 0:01:58]} 39. Bc1 {[%emt 0:05:06]} Nd7 {[%emt 0:00:51]} 40. Qh3 {[%emt 0:00:00]} Rfc8 {[%emt 0:00:00]} 41. g5 {[%emt 0:01:37]} Nf8 {[%emt 0:03:04]} 42. Re1 {[%emt 0:06:46]} R4c7 {[%emt 0:01:28]} 43. Rf1 {[%emt 0:02:27]} Qf5 {[%emt 0:00:16]} 44. Bb2 {[%emt 0:01:09]} Qxh3 {[%emt 0:00:43]} 45. Rxh3 {[%emt 0:00:04]} Rc4 {[%emt 0:02:43]} 46. Re3 {[%emt 0:00:55]} R8c7 {[%emt 0:01:46]} 47. Rf2 {[%emt 0:04:49]} Rb7 {[%emt 0:00:47]} 48. Rff3 1/2-1/2

[Event "IIFL Wealth  4th Mumbai Junior U-13"]
[Site "Mumbai"]
[Date "2019.01.07"]
[Round "9"]
[White "Abhinav Dubey"]
[Black "Rout Yashita"]
[Result "0-1"]
[ECO "C96"]
[WhiteElo "1497"]
[BlackElo "1264"]
[Annotator "NA RC"]
[PlyCount "130"]
[EventDate "2018.12.30"]
[EventType "swiss"]
[EventCountry "IND"]
[SourceTitle "playchess.com"]
[Source "ChessBase"]
[SourceQuality "1"]
[TimeControl "40/5400+30:1800+30"]

1. e4 {[%emt 0:00:00]} e5 {[%emt 0:02:26]} 2. Nf3 {[%emt 0:00:00]} Nc6 {[%emt 0:00:08]} 3. Bb5 {[%emt 0:00:00]} a6 {[%emt 0:00:13]} 4. Ba4 {[%emt 0:00:00]} Nf6 {[%emt 0:00:13]} 5. O-O {[%emt 0:00:00]} Be7 {[%emt 0:00:14]} 6. Re1 {[%emt 0:00:04]} b5 {[%emt 0:00:30]} 7. Bb3 {[%emt 0:00:05]} d6 {[%emt 0:00:12]} 8. c3 {[%emt 0:00:06]} O-O {[%emt 0:00:10]} 9. h3 {[%emt 0:00:05]} Na5 {[%emt 0:00:07]} 10. Bc2 {[%emt 0:00:06]} c5 {[%emt 0:00:07]} 11. d4 {[%emt 0:00:05]} Nd7 {[%emt 0:00:20]} 12. d5 {[%emt 0:01:42]} Nb6 {[%emt 0:00:40]} 13. Nbd2 {[%emt 0:01:15]} f5 {[%emt 0:02:20]} 14. Nf1 {[%emt 0:01:28]} f4 {[%emt 0:00:57]} 15. a4 {[%emt 0:06:29]} Bd7 {[%emt 0:02:32]} 16. axb5 {[%emt 0:01:05]} axb5 {[%emt 0:00:10]} 17. b3 {[%emt 0:10:38]} Kh8 {[%emt 0:02:49]} 18. N3h2 {[%emt 0:05:44]} Qe8 {[%emt 0:01:45]} 19. Bb2 {[%emt 0:04:10]} g5 {[%emt 0:02:46]} 20. Nd2 {[%emt 0:03:16]} Qg6 {[%emt 0:01:35]} 21. Bd3 {[%emt 0:11:16]} Nb7 {[%emt 0:06:23]} 22. Be2 {[%emt 0:02:11]} Rxa1 {[%emt 0:03:56]} 23. Bxa1 {[%emt 0:00:08]} Ra8 {[%emt 0:01:52]} 24. Qc2 {[%emt 0:09:33]} Nxd5 {[%emt 0:00:52]} 25. c4 {[%emt 0:00:57]} Nb4 {[%emt 0:00:58]} 26. Qb1 {[%emt 0:00:13]} Qe8 {[%emt 0:01:40]} 27. Ndf3 {[%emt 0:04:38]} Bf6 {[%emt 0:01:50]} 28. Ng4 {[%emt 0:03:34]} Bxg4 {[%emt 0:00:18]} 29. hxg4 {[%emt 0:00:07]} bxc4 {[%emt 0:00:25]} 30. Bxc4 {[%emt 0:00:16]} Na5 {[%emt 0:02:43]} 31. Be2 {[%emt 0:00:16]} Rb8 {[%emt 0:00:44]} 32. Qd1 {[%emt 0:00:30]} Qe7 {[%emt 0:01:15]} 33. Nd2 {[%emt 0:02:45]} d5 {[%emt 0:02:13]} 34. exd5 {[%emt 0:00:21]} Nxd5 {[%emt 0:05:26]} 35. Ne4 {[%emt 0:00:11]} Rd8 {[%emt 0:05:53]} 36. Qc2 {[%emt 0:00:54]} Bg7 {[%emt 0:01:39]} 37. Qxc5 {[%emt 0:01:26]} Qxc5 {[%emt 0:00:15]} 38. Nxc5 {[%emt 0:00:15]} Rc8 {[%emt 0:00:19]} 39. Rc1 {[%emt 0:03:34]} Nb7 {[%emt 0:03:48]} 40. Bf3 {[%emt 0:00:00]} Rxc5 {[%emt 0:00:00]} 41. Rxc5 {[%emt 0:01:09]} Nxc5 {[%emt 0:00:17]} 42. Bxd5 {[%emt 0:00:06]} e4 {[%emt 0:01:19]} 43. Bxg7+ {[%emt 0:01:04]} Kxg7 {[%emt 0:00:01]} 44. b4 {[%emt 0:00:43]} Nd3 {[%emt 0:00:05]} 45. b5 {[%emt 0:01:16]} e3 {[%emt 0:00:19]} 46. fxe3 {[%emt 0:00:07]} fxe3 {[%emt 0:00:04]} 47. Kf1 {[%emt 0:00:04]} e2+ {[%emt 0:00:07]} 48. Kxe2 {[%emt 0:00:29]} Nf4+ {[%emt 0:00:06]} 49. Ke3 {[%emt 0:00:04]} Nxd5+ {[%emt 0:00:01]} 50. Kd4 {[%emt 0:00:06]} Nb6 {[%emt 0:02:04]} 51. Kc5 {[%emt 0:00:05]} Na4+ {[%emt 0:00:07]} 52. Kb4 {[%emt 0:00:08]} Nb6 {[%emt 0:00:04]} 53. Kc5 {[%emt 0:00:04]} Nc8 {[%emt 0:01:56]} 54. Kc6 {[%emt 0:05:21]} Na7+ {[%emt 0:00:10]} 55. Kb6 {[%emt 0:00:05]} Nxb5 {[%emt 0:00:02]} 56. Kxb5 {[%emt 0:00:01]} Kf6 {[%emt 0:00:15]} 57. Kc6 {[%emt 0:00:18]} Ke5 {[%emt 0:00:04]} 58. Kd7 {[%emt 0:00:07]} Kf4 {[%emt 0:00:04]} 59. Ke6 {[%emt 0:00:08]} Kxg4 {[%emt 0:00:48]} 60. Kf6 {[%emt 0:00:08]} Kh4 {[%emt 0:02:53]} 61. Kf5 {[%emt 0:02:18]} h5 {[%emt 0:01:37]} 62. Kg6 {[%emt 0:03:50]} Kg4 {[%emt 0:01:23]} 63. Kh6 {[%emt 0:00:10]} h4 {[%emt 0:00:03]} 64. Kg6 {[%emt 0:00:09]} Kf4 {[%emt 0:00:05]} 65. Kh5 {[%emt 0:00:06]} Kf5 {[%emt 0:00:03]} 0-1

[Event "IIFL Wealth  4th Mumbai Junior U-13"]
[Site "Mumbai"]
[Date "2019.01.07"]
[Round "9"]
[White "Marium Fatima"]
[Black "Gosrani, Reeyan"]
[Result "1/2-1/2"]
[ECO "D02"]
[WhiteElo "1494"]
[BlackElo "1190"]
[Annotator "NA RC"]
[PlyCount "116"]
[EventDate "2018.12.30"]
[EventType "swiss"]
[EventCountry "IND"]
[SourceTitle "playchess.com"]
[Source "ChessBase"]
[SourceQuality "1"]
[TimeControl "40/5400+30:1800+30"]

1. d4 d5 2. Nf3 Nf6 3. g3 g6 4. Bg2 Bg7 5. O-O O-O 6. Nbd2 Nc6 7. b3 Re8 8. Bb2 Bd7 9. c4 e6 10. Rc1 Rc8 11. Qc2 Nb4 12. Qb1 Bh6 13. a3 Nc6 14. e3 Ne7 15. Ne5 c6 16. Rfd1 Nh5 17. Nef3 f5 18. Ne5 Nf6 19. Qd3 Ne4 20. f3 Nxd2 21. Rxd2 Kf8 22. Rf1 Ng8 23. Re2 Nf6 24. e4 Kg8 25. a4 a5 26. Rfe1 Qc7 27. Bc1 Bxc1 28. Rxc1 Qd8 29. Qe3 Qe7 30. g4 fxg4 31. fxg4 Rf8 32. Qh6 Be8 33. exd5 cxd5 34. Rce1 Qg7 35. Qd2 b6 36. g5 Nh5 37. cxd5 Nf4 38. Rf2 Nxd5 39. Bxd5 exd5 40. Rxf8+ Qxf8 41. Rf1 Qe7 42. Rf6 Qc7 43. Nd3 b5 44. Qf2 Qe7 45. Nc5 bxa4 46. bxa4 Rc6 47. Qf4 Qe1+ 48. Qf1 Qe3+ 49. Kh1 Qxd4 50. Rf8+ Kg7 51. Rxe8 Qxc5 52. Rd8 Qe7 53. Qa1+ Kf7 54. Qf1+ Kg7 55. Qa1+ Kf7 56. Qf1+ Kg7 57. Qa1+ Kf7 58. Qf1+ Kg7 1/2-1/2

[Event "IIFL Wealth  4th Mumbai Junior U-13"]
[Site "Mumbai"]
[Date "2019.01.07"]
[Round "9"]
[White "Arjun Sidharth S"]
[Black "Kadam Om Manish"]
[Result "0-1"]
[ECO "A46"]
[WhiteElo "1489"]
[BlackElo "1944"]
[Annotator "NA RC"]
[PlyCount "56"]
[EventDate "2018.12.30"]
[EventType "swiss"]
[EventCountry "IND"]
[SourceTitle "playchess.com"]
[Source "ChessBase"]
[SourceQuality "1"]
[TimeControl "40/5400+30:1800+30"]

1. d4 {[%emt 0:03:35]} Nf6 {[%emt 0:00:52]} 2. Nf3 {[%emt 0:00:12]} e6 {[%emt 0:00:05]} 3. e3 {[%emt 0:00:03]} c5 {[%emt 0:00:06]} 4. c3 {[%emt 0:00:05]} b6 {[%emt 0:00:15]} 5. Bd3 {[%emt 0:00:10]} Bb7 {[%emt 0:00:10]} 6. Nbd2 {[%emt 0:01:19]} d5 {[%emt 0:01:44]} 7. O-O {[%emt 0:00:10]} Bd6 {[%emt 0:00:06]} 8. Qc2 {[%emt 0:00:18] D05: Colle System with ...e6} (8. Qe2 O-O 9. e4 dxe4 10. Nxe4 Nxe4 11. Bxe4 Bxe4 12. Qxe4 Nd7 13. Bg5 Qc7 14. Rad1 Rae8 15. dxc5 Nxc5 {½-½ (30) Nouri,H (2363)-Swayams,M (2491) New Delhi 2017}) 8... O-O {[%emt 0:01:33]} 9. Qb1 {[%emt 0:08:24]} Nbd7 {[%emt 0:04:12]} 10. e4 {[%emt 0:02:17]} cxd4 {[%emt 0:00:17]} 11. cxd4 {[%emt 0:01:08]} e5 $146 {[%emt 0:00:40]} ({Predecessor:} 11... dxe4 12. Nxe4 Nxe4 13. Bxe4 Bxe4 14. Qxe4 Nf6 {0-1 (22) Agaoglu,A (1851)-Onem,C (1927) Canakkale 2015}) 12. dxe5 {[%emt 0:04:39]} ({White should play} 12. b3 $15) 12... Nxe5 {[%emt 0:00:50]} 13. Nxe5 {[%emt 0:00:10]} Bxe5 {[%emt 0:00:06]} 14. Nf3 {[%emt 0:00:10]} dxe4 {[%emt 0:00:08]} 15. Nxe5 {[%emt 0:00:31]} exd3 {[%emt 0:00:05]} 16. Bd2 {[%emt 0:14:18]} Re8 {[%emt 0:12:02]} 17. Bc3 {[%emt 0:10:14]} Qd5 {[%emt 0:01:50]} 18. Nf3 {[%emt 0:00:15]} Ne4 {[%emt 0:00:35]} 19. Rd1 {[%emt 0:01:49]} Nxc3 {[%emt 0:19:32]} 20. bxc3 {[%emt 0:00:19]} Rad8 {[%emt 0:00:02]} 21. Qb4 $2 {[%emt 0:05:02]} (21. Rd2) 21... Re4 {[%emt 0:01:26]} 22. Qb3 {[%emt 0:00:27]} Qc6 {[%emt 0:01:27]} 23. Re1 {[%emt 0:01:50]} d2 {[%emt 0:05:52]} 24. Rxe4 {[%emt 0:00:10]} Qxe4 {[%emt 0:00:10]} 25. Rd1 {[%emt 0:02:40]} Qe2 {[%emt 0:02:29]} 26. c4 {[%emt 0:00:30]} Bxf3 {[%emt 0:00:04]} 27. gxf3 {[%emt 0:00:07]} Rd6 {[%emt 0:00:25]} 28. c5 {[%emt 0:01:57]} Rg6+ $19 {[%emt 0:00:25]} 0-1